bitfinex-derivatives/quotes_SOLF0:USTF0_20250803
["timestamp","ask_amount","ask_price","bid_price","bid_amount"]
[1754234140725,3.34,161.35,161.3,0.86]
[1754234140926,3.34,161.35,161.28,7.15559192]
[1754234141731,3.34,161.33,161.28,6.29559192]
[1754234142231,6.1987,161.33,161.28,7.15559192]
[1754234142538,3.34,161.32,161.28,7.15559192]
[1754234143222,3.34,161.32,161.29,0.86]
[1754234145333,3.44,161.33,161.3,7.14559192]
[1754234145532,3.44,161.33,161.3,6.29559192]
[1754234146032,3.44,161.33,161.28,7.14559192]
[1754234146432,6.29559192,161.34,161.24,7.14559192]
[1754234146634,3.44,161.33,161.24,7.14559192]
[1754234146833,3.44,161.33,161.24,13.34749192]
[1754234147338,6.2001,161.3,161.24,13.34749192]
[1754234147535,3.44,161.29,161.25,0.85]
[1754234148039,3.44,161.3,161.26,6.29559192]
[1754234148236,3.44,161.3,161.26,7.14559192]
[1754234148939,6.2001,161.29,161.26,7.14559192]
[1754234149139,3.44,161.28,161.26,7.14559192]
[1754234149441,3.44,161.27,161.26,7.14559192]
[1754234149933,3.44,161.27,161.23,114.56]
[1754234150329,3.44,161.27,161.23,115.41]
[1754234150531,9.641,161.27,161.23,114.56]
[1754234150831,3.44,161.26,161.23,115.41]
[1754234151233,3.44,161.26,161.22,422.99559192]
[1754234151234,3.44,161.25,161.22,422.99559192]
[1754234151432,3.44,161.25,161.22,416.7]
[1754234152140,6.2017,161.25,161.22,416.7]
[1754234152333,3.44,161.24,161.22,416.7]
[1754234152740,3.44,161.24,161.21,120.85559192]
[1754234152934,9.642,161.24,161.21,120.85559192]
[1754234153239,6.29559192,161.3,161.21,120.85559192]
[1754234153441,3.44,161.22,161.21,120.85559192]
[1754234153836,3.44,161.22,161.21,121.70559192]
[1754234154444,6.202,161.25,161.21,121.70559192]
[1754234154741,3.44,161.23,161.21,121.70559192]
[1754234155240,3.44,161.24,161.21,120.85559192]
[1754234155444,3.44,161.24,161.22,0.85]
[1754234155643,3.44,161.23,161.22,0.85]
[1754234155842,3.44,161.23,161.21,120.85559192]
[1754234156143,3.44,161.23,161.21,121.70559192]
[1754234157844,3.44,161.23,161.21,120.85559192]
[1754234158045,3.44,161.23,161.22,0.85]
[1754234159046,3.44,161.25,161.21,127.05879192]
[1754234159249,3.44,161.25,161.23,6.29559192]
[1754234159442,3.44,161.25,161.24,0.85]
[1754234159646,3.44,161.25,161.23,6.29559192]
[1754234159846,3.44,161.25,161.23,7.14559192]
[1754234160551,6.201,161.27,161.23,7.14559192]
[1754234160752,3.44,161.24,161.23,7.14559192]
[1754234160953,3.44,161.25,161.22,6.29559192]
[1754234161451,3.44,161.25,161.22,7.14559192]
[1754234161753,20.19022687,161.4,161.23,0.85]
[1754234161754,3.44,161.24,161.23,0.85]
[1754234162150,6.29559192,161.32,161.22,6.29559192]
[1754234162346,3.44,161.23,161.22,7.14559192]
[1754234162541,6.29559192,161.3,161.21,114.56]
[1754234162747,3.44,161.29,161.21,120.85559192]
[1754234162947,3.44,161.26,161.22,0.85]
[1754234164551,28.10675055,161.34,161.25,6.29559192]
[1754234164764,3.44,161.33,161.27,6.29559192]
[1754234164952,3.44,161.33,161.29,7.14559192]
[1754234165154,3.44,161.33,161.29,121.70559192]
[1754234165649,3.44,161.32,161.29,121.70559192]
[1754234169155,3.44,161.32,161.29,127.90569192]
[1754234169458,3.44,161.31,161.3,0.85]
[1754234169958,6.1983,161.34,161.29,120.85559192]
[1754234170260,3.44,161.37,161.32,0.85]
[1754234170455,6.1978,161.36,161.33,114.54]
[1754234170658,3.44,161.35,161.33,114.54]
[1754234171862,3.44,161.36,161.33,120.83559192]
[1754234172268,6.29559192,161.4,161.33,114.54]
[1754234172466,3.44,161.39,161.33,114.54]
[1754234173659,3.47,161.34,161.33,114.54]
[1754234173860,3.47,161.34,161.31,6.29559192]
[1754234174059,3.47,161.34,161.32,114.52]
[1754234174366,9.6682,161.34,161.32,114.52]
[1754234174566,9.6682,161.34,161.31,6.29559192]
[1754234174567,3.47,161.34,161.31,6.29559192]
[1754234174864,3.47,161.34,161.32,114.52]
[1754234175265,9.6686,161.33,161.32,114.52]
[1754234176467,9.6682,161.34,161.32,115.36]
[1754234176768,3.47,161.33,161.32,115.36]
[1754234176966,3.47,161.33,161.32,114.52]
[1754234177666,3.47,161.33,161.3,7.13559192]
[1754234177861,3.47,161.33,161.32,114.5]
[1754234178057,3.47,161.33,161.32,120.79559192]
[1754234178464,3.47,161.39,161.32,120.79559192]
[1754234179464,3.47,161.34,161.32,121.63559192]
[1754234179669,3.47,161.39,161.32,120.79559192]
[1754234181070,3.47,161.34,161.32,120.79559192]
[1754234181369,3.47,161.39,161.32,120.79559192]
[1754234182473,3.47,161.33,161.32,120.79559192]
[1754234183371,3.47,161.33,161.32,121.63559192]
[1754234186477,3.47,161.33,161.32,114.5]
[1754234186676,3.47,161.33,161.32,120.79559192]
[1754234189178,9.6686,161.33,161.32,120.79559192]
[1754234189677,6.1981,161.35,161.32,120.79559192]
[1754234189879,3.47,161.34,161.33,0.84]
[1754234190177,3.47,161.39,161.32,121.63559192]
[1754234190778,9.6683,161.34,161.32,121.63559192]
[1754234190978,3.47,161.41,161.32,120.79559192]
[1754234191179,353.0,161.5,161.32,120.79559192]
[1754234191180,3.47,161.46,161.4,0.84]
[1754234191478,6.29559192,161.52,161.45,6.29559192]
[1754234191676,3.47,161.46,161.45,7.13559192]
[1754234192073,3.47,161.46,161.45,6.29559192]
[1754234192274,3.47,161.46,161.41,0.84]
[1754234192472,3.47,161.53,161.45,0.84]
[1754234192675,3.47,161.53,161.46,121.55559192]
[1754234193270,6.1927,161.49,161.46,121.55559192]
[1754234193477,3.47,161.48,161.46,121.55559192]
[1754234193678,3.47,161.48,161.46,120.71559192]
[1754234193887,3.47,161.48,161.47,0.84]
[1754234194284,3.47,161.48,161.46,120.71559192]
[1754234194584,3.47,161.48,161.46,121.55559192]
[1754234195492,3.47,161.47,161.46,121.55559192]
[1754234199496,9.6632,161.47,161.46,120.71559192]
[1754234199997,3.47,161.47,161.46,120.71559192]
[1754234200190,3.47,161.47,161.46,121.55559192]
[1754234200600,3.47,161.51,161.47,7.0331]
[1754234200895,6.1916,161.52,161.51,6.29559192]
[1754234201296,9.6616,161.52,161.51,6.29559192]
[1754234202994,6.29559192,161.62,161.52,3.28]
[1754234203191,6.29559192,161.62,161.4,30.08243448]
[1754234203192,6.29559192,161.62,161.54,6.29559192]
[1754234204191,52.2109405,161.65,161.54,6.29559192]
[1754234204398,6.29559192,161.62,161.54,6.29559192]
[1754234204596,6.29559192,161.62,161.53,120.63559192]
[1754234204996,3.44,161.61,161.53,120.63559192]
[1754234206504,9.6305,161.54,161.53,120.63559192]
[1754234207503,9.6305,161.54,161.53,124.02559192]
[1754234208402,3.44,161.54,161.53,124.02559192]
[1754234208605,52.2109405,161.65,161.53,124.02559192]
[1754234208807,3.44,161.64,161.59,6.29559192]
[1754234209096,3.44,161.64,161.6,3.39]
[1754234209304,6.1878,161.62,161.6,3.39]
[1754234209508,52.2109405,161.65,161.59,6.29559192]
[1754234209807,3.44,161.63,161.62,3.39]
[1754234210195,3.44,161.63,161.61,123.98559192]
[1754234210393,3.44,161.63,161.62,3.39]
[1754234211198,9.6271,161.63,161.62,3.39]
[1754234211397,3.44,161.63,161.62,3.39]
[1754234211808,3.44,161.65,161.62,3.39]
[1754234212000,3.44,161.65,161.64,9.68559192]
[1754234212409,6.29559192,161.72,161.64,9.68559192]
[1754234212602,3.44,161.67,161.65,3.39]
[1754234212905,3.44,161.66,161.65,3.39]
[1754234213502,3.44,161.76,161.66,3.39]
[1754234213700,3.44,161.76,161.71,6.29559192]
[1754234213902,6.1837,161.72,161.71,6.29559192]
[1754234214099,9.6237,161.72,161.71,6.29559192]
[1754234214502,3.44,161.72,161.71,9.68559192]
[1754234214903,6.184,161.71,161.7,120.53559192]
[1754234215108,9.624,161.71,161.7,120.53559192]
[1754234215301,3.44,161.73,161.7,123.92559192]
[1754234215502,3.44,161.72,161.7,120.53559192]
[1754234215702,3.44,161.72,161.71,3.39]
[1754234216104,9.6236,161.72,161.71,3.39]
[1754234216810,3.44,161.72,161.71,3.39]
[1754234217112,3.44,161.79,161.72,3.39]
[1754234217302,3.44,161.79,161.74,9.68559192]
[1754234217505,3.44,161.78,161.76,6.29559192]
[1754234217716,3.44,161.78,161.76,9.68559192]
[1754234218311,3.44,161.77,161.76,9.68559192]
[1754234218615,0.02,161.8,161.77,3.39]
[1754234218809,0.02,161.8,161.78,3.39]
[1754234219210,9.6406,161.8,161.76,6.29559192]
[1754234219512,3.44,161.79,161.78,9.68559192]
[1754234219704,3.44,161.79,161.78,6.29559192]
[1754234221003,0.02,161.8,161.77,114.18]
[1754234221310,3.44,161.78,161.77,117.57]
[1754234221812,3.44,161.78,161.77,3.39]
[1754234222013,3.44,161.78,161.77,117.57]
[1754234223008,3.44,161.78,161.74,6.29559192]
[1754234223315,3.44,161.79,161.73,120.47559192]
[1754234223613,3.44,161.79,161.73,123.86559192]
[1754234224317,3.44,161.75,161.73,123.86559192]
[1754234224609,3.44,161.75,161.74,3.39]
[1754234224811,3.44,161.75,161.73,120.47559192]
[1754234224812,3.44,161.74,161.73,114.18]
[1754234225415,9.6233,161.73,161.71,6.29559192]
[1754234225610,9.6233,161.73,161.72,114.2]
[1754234225810,3.44,161.75,161.72,117.59]
[1754234226120,3.44,161.79,161.73,6.29559192]
[1754234226410,3.44,161.79,161.73,9.68559192]
[1754234226608,3.44,161.79,161.72,114.14]
[1754234227012,6.1844,161.7,161.69,3.39]
[1754234227215,3.44,161.7,161.69,3.39]
[1754234227405,0.02,161.8,161.67,6.29559192]
[1754234227406,6.29559192,161.74,161.67,6.29559192]
[1754234227606,3.44,161.73,161.67,114.22]
[1754234228915,6.1851,161.69,161.67,114.22]
[1754234229209,9.6251,161.69,161.68,3.39]
[1754234230316,9.6251,161.69,161.67,114.22]
[1754234230518,3.44,161.68,161.67,117.61]
[1754234231214,9.6251,161.69,161.68,3.39]
[1754234232417,6.29559192,161.76,161.68,3.39]
[1754234232718,3.44,161.75,161.68,3.39]
[1754234232908,6.29559192,161.76,161.68,3.39]
[1754234233614,3.44,161.7,161.69,3.39]
[1754234234019,9.6244,161.7,161.69,3.39]
[1754234234417,3.44,161.7,161.69,3.39]
[1754234235718,6.1844,161.7,161.67,120.49559192]
[1754234235917,3.37,161.69,161.68,3.35]
[1754234236118,6.1841,161.71,161.68,3.35]
[1754234236420,3.37,161.75,161.68,3.35]
[1754234236617,6.1844,161.7,161.67,120.49559192]
[1754234236814,3.37,161.69,161.67,6.29559192]
[1754234237017,3.37,161.68,161.67,120.43559192]
[1754234237420,3.37,161.68,161.67,117.49]
[1754234242620,6.1845,161.7,161.67,123.78559192]
[1754234242821,3.37,161.69,161.67,117.49]
[1754234243023,3.37,161.69,161.65,3.35]
[1754234243325,3.37,161.67,161.66,114.14]
[1754234243828,9.5555,161.67,161.66,114.14]
[1754234244531,6.186,161.66,161.64,120.43559192]
[1754234244826,6.29559192,161.7,161.61,6.29559192]
[1754234245027,3.37,161.69,161.62,114.14]
[1754234245225,3.37,161.69,161.62,117.49]
[1754234246028,9.5567,161.64,161.63,3.35]
[1754234246433,3.37,161.61,161.59,421.85559192]
[1754234246725,3.37,161.61,161.6,114.16]
[1754234246930,6.1875,161.62,161.6,117.51]
[1754234247224,3.37,161.6,161.59,3.35]
[1754234247429,3.37,161.65,161.59,117.51]
[1754234247628,3.37,161.6,161.59,117.51]
[1754234248131,9.5582,161.6,161.59,117.51]
[1754234248432,3.37,161.6,161.59,117.51]
[1754234249436,3.37,161.62,161.6,3.35]
[1754234249636,6.29559192,161.66,161.6,3.35]
[1754234249830,3.37,161.61,161.6,3.35]
[1754234251827,6.29559192,161.66,161.61,3.35]
[1754234252028,3.37,161.62,161.61,3.35]
[1754234252222,6.1875,161.62,161.6,3.35]
[1754234252425,3.37,161.61,161.6,3.35]
[1754234253033,6.29559192,161.66,161.57,6.29559192]
[1754234253234,3.37,161.6,161.58,114.16]
[1754234253827,3.37,161.59,161.58,114.16]
[1754234254731,9.5586,161.59,161.58,114.16]
[1754234255530,3.37,161.59,161.58,114.16]
[1754234255733,3.37,161.59,161.58,117.51]
[1754234256034,3.37,161.63,161.59,3.35]
[1754234256231,9.5579,161.61,161.6,3.35]
[1754234256632,6.29559192,161.66,161.58,114.16]
[1754234256936,3.37,161.6,161.59,3.35]
[1754234258441,6.1882,161.6,161.58,117.51]
[1754234258633,3.37,161.59,161.58,117.51]
[1754234258833,9.5586,161.59,161.58,117.51]
[1754234259034,9.5586,161.59,161.58,114.16]
[1754234260338,9.5586,161.59,161.56,3.35]
[1754234260640,3.37,161.58,161.57,3.35]
[1754234261138,9.559,161.58,161.57,3.35]
[1754234261633,3.37,161.58,161.57,3.35]
[1754234262040,6.29559192,161.64,161.57,3.35]
[1754234262240,3.37,161.59,161.58,3.35]
[1754234263236,9.5586,161.59,161.58,3.35]
[1754234263944,3.37,161.59,161.58,3.35]
[1754234264243,3.37,161.59,161.56,117.56]
[1754234264844,6.1893,161.58,161.56,117.56]
[1754234265047,3.41,161.57,161.56,117.56]
[1754234265646,3.41,161.57,161.56,114.18]
[1754234266458,3.41,161.57,161.56,117.56]
[1754234267154,3.41,161.63,161.57,3.38]
[1754234268452,3.41,161.58,161.57,3.38]
[1754234268662,3.41,161.65,161.58,3.38]
[1754234268847,3.41,161.65,161.51,5.05457155]
[1754234268848,3.41,161.65,161.6,9.67559192]
[1754234269154,6.29559192,161.69,161.59,114.18]
[1754234269453,3.41,161.61,161.6,3.38]
[1754234269656,6.29559192,161.67,161.61,3.38]
[1754234269657,3.41,161.67,161.61,3.38]
[1754234270647,3.41,161.68,161.61,3.38]
[1754234271254,6.186,161.66,161.61,9.5676]
[1754234271457,9.596,161.66,161.62,3.38]
[1754234271657,6.29559192,161.69,161.62,3.38]
[1754234271658,3.41,161.65,161.62,3.38]
[1754234272060,3.41,161.68,161.62,3.38]
[1754234272755,3.41,161.68,161.62,9.5675]
[1754234272963,25.00625532,161.71,161.65,3.38]
[1754234273158,3.41,161.7,161.65,3.38]
[1754234273854,3.41,161.68,161.65,9.5663]
[1754234274054,3.41,161.68,161.65,6.1863]
[1754234274255,3.41,161.68,161.67,3.38]
[1754234275565,3.41,161.7,161.67,3.38]
[1754234275860,3.41,161.69,161.68,3.38]
[1754234278365,3.41,161.68,161.67,3.38]
[1754234278865,3.41,161.68,161.61,3.38]
[1754234279161,3.41,161.68,161.59,117.54]
[1754234279358,3.41,161.68,161.6,6.29559192]
[1754234279664,3.41,161.61,161.6,9.67559192]
[1754234280065,6.1872,161.63,161.6,9.67559192]
[1754234280365,6.29559192,161.68,161.61,3.38]
[1754234280366,3.41,161.62,161.61,3.38]
[1754234280563,3.41,161.67,161.61,3.38]
[1754234280757,3.41,161.67,161.62,6.29559192]
[1754234281164,3.41,161.67,161.64,3.38]
[1754234281462,114.14,161.76,161.64,3.38]
[1754234281463,3.41,161.71,161.64,6.29559192]
[1754234281768,3.41,161.71,161.65,3.38]
[1754234282169,6.1845,161.7,161.65,3.38]
[1754234282365,3.41,161.69,161.65,3.38]
[1754234282856,9.595,161.69,161.65,3.38]
[1754234283054,3.41,161.67,161.66,3.38]
[1754234283453,3.41,161.7,161.65,3.38]
[1754234283968,12.47899192,161.73,161.66,3.38]
[1754234284160,3.41,161.72,161.66,3.38]
[1754234284361,3.41,161.72,161.66,6.1857]
[1754234284554,3.41,161.72,161.68,6.29559192]
[1754234284758,3.41,161.72,161.69,3.38]
[1754234286072,3.41,161.74,161.69,3.38]
[1754234286761,3.41,161.74,161.69,9.5645]
[1754234287268,3.41,161.74,161.69,3.38]
[1754234287770,3.41,161.73,161.66,6.29559192]
[1754234288468,3.41,161.72,161.67,3.38]
[1754234289170,3.41,161.72,161.68,3.38]
[1754234289567,3.41,161.72,161.68,9.5649]
[1754234290270,3.41,161.72,161.69,3.38]
[1754234290473,6.29559192,161.76,161.68,6.29559192]
[1754234290772,6.1828,161.75,161.7,3.38]
[1754234290963,3.41,161.74,161.7,3.38]
[1754234291569,6.1829,161.74,161.7,3.38]
[1754234291868,3.41,161.73,161.68,12.48069192]
[1754234292069,3.41,161.73,161.68,6.1851]
[1754234292274,3.41,161.72,161.67,6.1854]
[1754234292473,3.41,161.72,161.67,9.5654]
[1754234293164,3.41,161.72,161.68,9.5651]
[1754234293568,3.41,161.72,161.68,6.29559192]
[1754234293767,3.41,161.72,161.69,9.4047]
[1754234294477,3.47,161.71,161.69,9.4047]
[1754234295579,3.47,161.71,161.7,3.22]
[1754234297472,3.47,161.71,161.68,6.1851]
[1754234297670,3.47,161.71,161.68,9.4051]
[1754234297872,3.47,161.75,161.68,3.22]
[1754234298071,3.47,161.73,161.68,9.4049]
[1754234298272,3.47,161.73,161.69,3.22]
[1754234298675,9.6533,161.73,161.69,3.22]
[1754234298982,3.47,161.72,161.69,3.22]
[1754234299476,3.47,161.77,161.71,3.22]
[1754234300067,3.47,161.77,161.72,6.1834]
[1754234300270,3.47,161.77,161.73,3.22]
[1754234300874,3.47,161.76,161.73,3.22]
[1754234301573,3.47,161.76,161.73,9.4032]
[1754234301869,133.8806598,161.78,161.74,6.29559192]
[1754234302068,3.47,161.77,161.76,3.22]
[1754234302873,133.8806598,161.78,161.77,3.22]
[1754234303571,3.47,161.79,161.77,3.22]
[1754234304171,3.47,161.78,161.77,3.22]
[1754234305073,3.47,161.79,161.77,3.22]
[1754234305274,3.47,161.78,161.77,3.22]
[1754234308580,3.47,161.77,161.74,9.51559192]
[1754234308970,3.47,161.76,161.74,6.29559192]
[1754234309280,3.47,161.79,161.72,9.51559192]
[1754234309784,6.1818,161.77,161.73,3.22]
[1754234309978,3.47,161.79,161.73,3.22]
[1754234310179,3.47,161.79,161.74,6.29559192]
[1754234310476,3.47,161.79,161.78,3.22]
[1754234310776,0.02,161.8,161.78,3.22]
[1754234310971,3.49,161.8,161.78,3.22]
[1754234311177,3.49,161.8,161.79,3.22]
[1754234312174,3.49,161.8,161.76,6.29559192]
[1754234312470,3.47,161.79,161.78,3.22]
[1754234312874,3.47,161.79,161.71,3.22]
[1754234313180,3.47,161.79,161.74,3.22]
[1754234313785,3.47,161.79,161.72,6.29559192]
[1754234313977,3.47,161.79,161.73,3.22]
[1754234314280,3.45,161.79,161.73,3.22]
[1754234314676,3.45,161.79,161.74,6.29559192]
[1754234314986,0.02,161.8,161.77,3.22]
[1754234315572,0.02,161.8,161.76,6.29559192]
[1754234315980,0.02,161.8,161.79,3.22]
[1754234316186,3.49,161.8,161.79,3.22]
[1754234316382,3.47,161.79,161.78,3.22]
[1754234318179,3.47,161.79,161.77,3.22]
[1754234318385,3.47,161.79,161.75,3.22]
[1754234318986,3.47,161.79,161.76,3.22]
[1754234319892,3.47,161.79,161.75,3.22]
[1754234320376,3.47,161.79,161.77,3.22]
[1754234320579,3.47,161.79,161.78,3.22]
[1754234322293,3.47,161.79,161.77,3.22]
[1754234322789,3.49,161.8,161.78,3.22]
[1754234323188,3.47,161.79,161.78,3.22]
[1754234323387,0.02,161.8,161.78,3.22]
[1754234323588,3.49,161.8,161.78,3.22]
[1754234324091,3.49,161.8,161.79,3.49]
[1754234325086,3.49,161.8,161.79,9.671]
[1754234325288,0.02,161.8,161.79,9.671]
[1754234325485,3.48,161.8,161.79,3.49]
[1754234325790,3.46,161.79,161.77,3.49]
[1754234325988,3.48,161.8,161.76,6.29559192]
[1754234326193,3.48,161.8,161.79,3.49]
[1754234327691,3.48,161.8,161.76,15.96729192]
[1754234328895,3.48,161.8,161.77,3.49]
[1754234329494,3.48,161.8,161.77,9.6717]
[1754234329892,3.48,161.8,161.77,3.49]
[1754234330090,3.46,161.79,161.76,12.47759192]
[1754234330295,3.46,161.79,161.76,15.96759192]
[1754234330694,3.46,161.79,161.74,9.78559192]
[1754234330892,3.46,161.79,161.75,3.49]
[1754234331292,3.46,161.79,161.73,3.49]
[1754234332100,6.1816,161.78,161.74,6.1829]
[1754234332396,3.46,161.77,161.74,9.6729]
[1754234332596,3.46,161.78,161.75,3.49]
[1754234333293,9.6416,161.78,161.75,3.49]
[1754234333498,3.46,161.76,161.75,3.49]
[1754234335500,3.46,161.76,161.75,9.6725]
[1754234337304,3.46,161.76,161.75,3.49]
[1754234337496,3.46,161.78,161.75,3.49]
[1754234337691,3.48,161.8,161.76,6.29559192]
[1754234337894,3.48,161.8,161.78,6.1813]
[1754234338094,3.48,161.8,161.78,9.6713]
[1754234338296,3.46,161.79,161.78,3.49]
[1754234340301,3.46,161.79,161.76,15.96759192]
[1754234340496,3.46,161.78,161.77,3.49]
[1754234341201,3.46,161.78,161.77,9.6716]
[1754234341404,0.02,161.8,161.77,9.6716]
[1754234341705,3.46,161.78,161.77,9.6716]
[1754234341894,3.46,161.79,161.76,6.29559192]
[1754234342099,3.46,161.79,161.78,3.49]
[1754234342696,3.46,161.78,161.77,3.49]
[1754234342999,3.46,161.79,161.78,3.49]
[1754234343204,3.48,161.8,161.77,3.49]
[1754234344107,0.02,161.8,161.79,9.671]
[1754234344504,3.46,161.79,161.78,9.78559192]
[1754234345208,3.46,161.79,161.78,15.96659192]
[1754234346205,0.02,161.8,161.79,6.181]
[1754234346410,3.48,161.8,161.79,9.671]
[1754234347310,0.02,161.8,161.79,9.671]
[1754234349014,3.48,161.8,161.79,9.671]
[1754234351714,0.02,161.8,161.79,9.671]
[1754234352623,0.02,161.8,161.78,6.1813]
[1754234352918,3.48,161.8,161.78,3.49]
[1754234353215,3.48,161.8,161.79,3.49]
[1754234353414,3.48,161.8,161.77,9.78559192]
[1754234353820,3.48,161.8,161.76,3.47]
[1754234354025,3.49,161.79,161.72,3.47]
[1754234354224,3.49,161.79,161.73,3.47]
[1754234354420,6.1816,161.78,161.74,9.6527]
[1754234354615,3.49,161.77,161.74,9.6527]
[1754234355421,3.49,161.77,161.74,15.94829192]
[1754234356927,3.49,161.77,161.74,12.47829192]
[1754234357125,3.49,161.77,161.74,15.94829192]
[1754234357627,3.49,161.76,161.72,9.76559192]
[1754234358022,3.49,161.75,161.72,3.47]
[1754234358433,3.49,161.75,161.72,9.6535]
[1754234358625,3.49,161.75,161.72,3.47]
[1754234359528,3.49,161.75,161.73,6.1832]
[1754234360318,3.49,161.75,161.73,9.6532]
[1754234361227,3.49,161.74,161.72,6.1835]
[1754234361427,3.49,161.74,161.72,9.6535]
[1754234362027,0.02,161.8,161.7,11.29381]
[1754234362028,6.29559192,161.77,161.7,11.29381]
[1754234362333,3.49,161.76,161.7,11.29381]
[1754234362533,6.1826,161.75,161.71,6.1839]
[1754234362732,3.49,161.74,161.71,9.6539]
[1754234363028,3.49,161.74,161.72,6.1835]
[1754234363230,3.49,161.74,161.71,3.47]
[1754234363626,3.49,161.74,161.72,6.1835]
[1754234364234,3.49,161.73,161.72,6.1835]
[1754234365934,3.49,161.73,161.72,9.6535]
[1754234368033,3.49,161.73,161.72,6.1835]
[1754234369637,3.49,161.73,161.71,9.6539]
[1754234369844,3.49,161.73,161.71,6.1839]
[1754234370435,3.49,161.73,161.71,9.6539]
[1754234371237,3.49,161.73,161.71,6.1839]
[1754234371844,3.49,161.73,161.71,9.6539]
[1754234372435,3.49,161.78,161.71,6.1839]
[1754234372639,3.49,161.76,161.7,11.29381]
[1754234373341,6.1831,161.74,161.7,11.29381]
[1754234373543,3.49,161.76,161.7,11.29381]
[1754234374239,3.49,161.73,161.71,3.47]
[1754234376149,3.49,161.73,161.7,17.47791]
[1754234376338,3.49,161.73,161.71,3.47]
[1754234380549,6.1834,161.73,161.7,11.29381]
[1754234380743,3.49,161.72,161.7,14.76381]
[1754234381545,3.49,161.73,161.71,3.47]
[1754234382446,6.1834,161.73,161.71,3.47]
[1754234382748,3.49,161.72,161.7,14.76381]
[1754234384451,3.43,161.72,161.71,3.52]
[1754234385648,3.43,161.72,161.71,9.704]
[1754234386147,3.43,161.73,161.71,3.52]
[1754234386352,3.43,161.72,161.7,17.47801]
[1754234386752,3.43,161.72,161.71,6.184]
[1754234387052,3.43,161.72,161.71,9.704]
[1754234387255,3.43,161.72,161.7,11.29381]
[1754234387453,3.43,161.72,161.7,14.81381]
[1754234387655,3.43,161.73,161.71,3.52]
[1754234388354,3.43,161.73,161.71,9.704]
[1754234388858,3.43,161.72,161.71,6.184]
[1754234389156,3.43,161.77,161.71,6.184]
[1754234389357,3.43,161.77,161.7,20.99811]
[1754234390247,3.43,161.72,161.7,20.99811]
[1754234391656,3.43,161.72,161.7,14.81381]
[1754234392057,9.6137,161.72,161.7,14.81381]
[1754234392254,3.43,161.71,161.7,11.29381]
[1754234392655,9.614,161.71,161.7,11.29381]
[1754234397567,6.1847,161.7,161.68,113.96]
[1754234397866,3.43,161.69,161.68,113.96]
[1754234398068,3.43,161.69,161.67,3.52]
[1754234398371,3.43,161.68,161.66,6.1858]
[1754234398568,6.1841,161.71,161.67,6.1853]